bitfinex-derivatives/quotes_ETHF0:USTF0_20250904
["timestamp","ask_amount","ask_price","bid_price","bid_amount"]
[1757014207841,0.7096,4282.9,4282.8,0.5256]
[1757014208943,0.5066,4283.2,4283.1,0.84508]
[1757014209143,0.5066,4283.2,4283.1,1.15828]
[1757014209144,0.579,4283.2,4283.1,1.15828]
[1757014209446,0.3727,4283.2,4283.1,1.15828]
[1757014209839,0.3727,4283.2,4283.1,0.7381]
[1757014210039,1.0823,4283.2,4283.1,0.7381]
[1757014210845,0.579,4283.2,4283.1,0.7381]
[1757014211142,1.0823,4283.2,4283.1,0.7381]
[1757014214445,1.0823,4283.2,4283.1,1.15828]
[1757014214651,0.3727,4283.2,4283.1,1.15828]
[1757014214945,0.8793,4283.2,4283.1,0.7381]
[1757014215149,1.0823,4283.2,4283.1,0.9761]
[1757014215353,1.0823,4283.2,4283.1,1.39628]
[1757014215954,1.0823,4283.2,4283.1,0.9761]
[1757014216151,1.0823,4283.2,4283.1,1.39628]
[1757014216548,1.0823,4283.2,4283.1,0.2124]
[1757014216749,1.0823,4283.2,4283.1,0.7381]
[1757014218858,1.0823,4283.2,4283.1,1.15828]
[1757014219251,1.0823,4283.2,4283.1,0.7381]
[1757014219856,0.579,4283.2,4283.1,1.15828]
[1757014220050,0.3727,4283.2,4283.1,1.15828]
[1757014224357,0.00479872,4283.8,4283.7,0.83462]
[1757014224560,0.00479872,4283.8,4283.7,4.59762]
[1757014224955,0.00479872,4283.8,4283.7,6.69019035]
[1757014226262,0.00479872,4283.8,4283.7,4.59762]
[1757014226466,0.3008,4284.5,4283.7,4.59762]
[1757014226467,0.3008,4284.5,4284.4,0.42005]
[1757014226650,0.3008,4285.0,4284.9,0.42]
[1757014226854,0.4943,4285.1,4285.0,0.8542]
[1757014227666,0.1935,4285.1,4285.0,0.8542]
[1757014228255,0.4943,4285.1,4285.0,1.0922]
[1757014228668,0.4218,4285.0,4284.4,3.525]
[1757014228859,0.7001,4284.5,4284.4,3.9395]
[1757014229060,0.8211,4284.5,4284.4,4.1775]
[1757014230162,0.8211,4284.5,4284.4,0.9697]
[1757014230363,0.7001,4283.8,4283.7,3.416]
[1757014230559,0.121,4284.5,4283.9,0.4201]
[1757014230761,0.7001,4284.4,4284.3,0.2082]
[1757014231165,0.7001,4284.4,4284.3,0.5254]
[1757014231565,0.7001,4284.4,4284.3,0.2082]
[1757014232763,0.7001,4284.4,4284.3,0.7317]
[1757014234163,0.7001,4284.4,4284.3,0.4145]
[1757014234364,0.7001,4284.4,4284.3,0.7317]
[1757014236365,0.3008,4284.3,4284.2,3.86587]
[1757014236570,0.7001,4284.3,4284.2,3.86587]
[1757014237867,0.7001,4284.3,4284.2,4.07407]
[1757014238761,0.7001,4284.3,4284.2,3.416]
[1757014238966,0.121,4284.5,4283.6,34.31357035]
[1757014238967,0.7001,4283.9,4283.8,0.4201]
[1757014239167,0.7001,4283.9,4283.7,3.62792]
[1757014239376,0.3008,4283.8,4283.7,3.62792]
[1757014239571,0.7001,4283.8,4283.7,3.83612]
[1757014239869,0.4943,4284.2,4284.1,0.42007]
[1757014240070,0.121,4284.5,4284.4,0.83455]
[1757014240071,0.1935,4284.5,4284.4,0.83455]
[1757014240269,0.7001,4284.5,4284.4,0.7317]
[1757014240478,0.8211,4284.5,4284.4,0.7317]
[1757014241570,0.7001,4284.5,4284.4,1.15175]
[1757014241773,0.4943,4284.5,4284.4,1.15175]
[1757014242067,0.4943,4284.5,4284.4,0.7317]
[1757014242275,0.7001,4284.5,4284.4,0.7317]
[1757014242569,0.1935,4284.5,4284.4,1.15175]
[1757014242770,0.1935,4284.7,4284.6,0.83452]
[1757014242972,0.4943,4284.7,4284.6,1.15172]
[1757014244371,0.3008,4285.0,4284.8,0.42]
[1757014244576,0.1935,4284.9,4284.8,4.0423]
[1757014245171,0.4943,4285.3,4285.2,0.4145]
[1757014245369,0.7001,4285.3,4285.2,0.7317]
[1757014245670,0.1935,4285.3,4285.2,1.15167]
[1757014246264,0.3008,4285.6,4285.2,0.7317]
[1757014246469,0.7001,4285.7,4285.6,0.7317]
[1757014248076,0.7001,4285.7,4285.6,1.15163]
[1757014248369,3.2078,4286.4,4285.8,1.13011]
[1757014248370,0.1963,4285.9,4285.8,1.13011]
[1757014248571,0.4904,4286.1,4286.0,0.4094]
[1757014248871,0.4904,4286.1,4285.8,0.6579]
[1757014248872,0.6957,4285.7,4285.6,0.2138]
[1757014249069,0.6957,4285.7,4285.6,0.7526]
[1757014249271,0.6957,4285.7,4285.6,0.9482]
[1757014249574,0.6957,4286.3,4286.2,0.7102]
[1757014255272,0.6957,4286.3,4286.2,0.4094]
[1757014255576,0.6957,4285.9,4285.8,3.4216]
[1757014255765,0.6957,4285.9,4285.7,0.238]
[1757014255964,0.4138,4285.5,4285.4,0.2138]
[1757014256171,0.8154,4285.5,4285.4,0.2138]
[1757014257478,0.8154,4285.5,4285.1,0.3008]
[1757014257676,0.8154,4285.5,4285.0,0.238]
[1757014257878,0.4016,4284.6,4284.5,2.54437035]
[1757014258182,0.6957,4284.6,4284.5,0.9482]
[1757014260384,0.6957,4284.6,4284.5,1.0644]
[1757014260682,0.6957,4284.6,4284.5,0.9482]
[1757014261674,0.5213,4285.0,4284.9,0.7102]
[1757014261878,0.4016,4285.0,4284.9,0.7102]
[1757014262078,3.7291,4285.5,4285.4,0.2138]
[1757014262382,3.7291,4285.5,4284.9,0.238]
[1757014262383,4.0232,4285.5,4284.9,0.238]
[1757014262584,0.8154,4285.0,4284.9,0.238]
[1757014263084,0.8154,4285.0,4284.9,0.4518]
[1757014263584,0.6957,4285.0,4284.9,0.9482]
[1757014265286,0.8154,4285.0,4284.9,0.9482]
[1757014265784,0.6957,4285.0,4284.9,0.9482]
[1757014266480,0.6957,4285.0,4284.9,1.3682]
[1757014267080,0.6957,4285.0,4284.9,0.9482]
[1757014267679,0.6957,4285.0,4284.9,0.4094]
[1757014267883,0.8154,4285.0,4284.9,0.2138]
[1757014268282,0.6957,4285.0,4284.9,0.7102]
[1757014268481,0.6957,4285.0,4284.9,1.1302]
[1757014268685,0.6957,4285.0,4284.9,0.7102]
[1757014269087,0.8154,4285.0,4284.9,0.7102]
[1757014269382,0.8154,4285.0,4284.9,1.1302]
[1757014269886,3.9035,4285.5,4285.4,1.13015]
[1757014270289,0.6957,4285.5,4285.4,1.13015]
[1757014272085,0.2941,4285.8,4285.6,0.41992]
[1757014272388,0.6957,4285.8,4285.7,0.7102]
[1757014272590,0.6957,4285.8,4285.7,0.4094]
[1757014272996,0.6957,4285.8,4285.7,1.13012]
[1757014274494,0.6957,4285.8,4285.7,0.7102]
[1757014274693,0.6957,4285.8,4285.7,0.4094]
[1757014274897,0.6957,4285.8,4285.4,0.3008]
[1757014275095,0.8154,4285.5,4285.4,0.2138]
[1757014275489,0.8154,4285.5,4285.4,0.7102]
[1757014275794,0.8154,4285.5,4285.4,0.2138]
[1757014276389,0.8154,4285.5,4285.4,0.5146]
[1757014276794,0.8154,4285.5,4285.4,0.2138]
[1757014276988,0.5213,4285.5,4285.3,3.2078]
[1757014277192,0.6957,4285.1,4284.8,3.2078]
[1757014277394,0.6957,4285.1,4284.6,2.09257035]
[1757014277395,0.2941,4284.8,4284.3,3.2078]
[1757014277590,0.4016,4284.4,4284.3,0.2138]
[1757014277790,0.4016,4284.4,4284.0,0.3035]
[1757014277986,0.4016,4284.4,4283.9,2.09257035]
[1757014278186,0.5225,4284.1,4284.0,0.5004]
[1757014278389,0.5225,4284.1,4284.0,0.7032]
[1757014278590,0.7341,4284.1,4284.0,0.7032]
[1757014278790,0.7341,4284.1,4284.0,0.3997]
[1757014278995,0.7341,4284.1,4284.0,0.2028]
[1757014279390,0.7341,4283.9,4283.6,2.09257035]
[1757014279591,0.7341,4283.4,4283.3,5.30037035]
[1757014279793,0.7341,4283.4,4282.9,2.39607035]
[1757014279794,0.3112,4283.3,4282.9,2.39607035]
[1757014279993,0.4229,4283.0,4282.9,0.5063]
[1757014280192,0.4229,4283.0,4282.8,2.09257035]
[1757014280193,0.3112,4282.9,4282.8,3.2078]
[1757014280399,0.7341,4283.4,4283.3,0.3997]
[1757014280993,0.7341,4283.4,4283.3,0.7032]
[1757014281699,0.7341,4283.4,4282.6,0.238]
[1757014281894,0.3112,4283.3,4282.6,0.5415]
[1757014282089,0.2113,4282.7,4282.6,0.9412]
[1757014282292,0.5225,4282.7,4282.6,0.9412]
[1757014282493,0.7341,4282.7,4282.6,0.7032]
[1757014283398,0.1193,4282.5,4282.4,3.4458]
[1757014283599,0.1193,4283.0,4282.4,0.6377]
[1757014283902,3.2078,4283.4,4283.3,0.7032]
[1757014284098,3.2078,4283.9,4283.4,0.3035]
[1757014284296,0.5225,4283.9,4283.8,0.7032]
[1757014284796,0.3112,4283.8,4283.4,3.2078]
[1757014284997,0.7341,4283.2,4283.1,0.3997]
[1757014285197,0.7341,4283.2,4283.1,0.7032]
[1757014286695,0.7341,4283.2,4283.1,0.2028]
[1757014286896,0.3112,4283.1,4282.7,3.7493]
[1757014287095,0.5225,4282.8,4282.7,4.149]
[1757014287296,0.2113,4282.8,4282.7,4.149]
[1757014287705,0.5225,4283.1,4283.0,0.3997]
[1757014287903,0.7341,4283.1,4283.0,0.7032]
[1757014289298,0.7341,4282.8,4282.7,3.2078]
[1757014293006,0.7341,4282.8,4282.7,3.911]
[1757014294308,0.7341,4282.8,4282.7,0.7032]
[1757014294510,0.7341,4282.8,4282.7,0.3997]
[1757014294801,0.4229,4282.3,4282.2,0.4408]
[1757014295003,0.7341,4282.3,4282.2,0.2028]
[1757014295205,0.3112,4282.9,4282.2,0.3997]
[1757014295405,0.3112,4282.9,4282.8,0.3997]
[1757014295406,0.7341,4282.9,4282.8,0.3997]
[1757014295706,0.7341,4282.9,4282.8,0.7032]
[1757014296105,0.2113,4282.9,4282.8,0.7032]
[1757014296310,0.3112,4283.4,4282.9,0.3035]
[1757014296502,0.2113,4283.0,4282.9,0.7032]
[1757014297006,0.7341,4283.0,4282.9,0.7032]
[1757014297200,0.8534,4283.0,4282.9,0.7032]
[1757014299708,0.5422,4283.0,4282.5,3.2078]
[1757014299908,0.5422,4282.5,4282.4,0.2028]
[1757014300104,0.5422,4282.5,4282.4,0.7032]
[1757014300297,0.5422,4282.5,4282.0,0.3035]
[1757014300497,0.7341,4281.9,4281.2,0.3035]
[1757014300702,0.3112,4281.9,4281.2,0.3035]
[1757014300900,0.7341,4281.6,4281.5,0.2028]
[1757014301111,0.7341,4281.3,4281.2,0.2028]
[1757014301804,0.7341,4281.3,4281.2,0.3997]
[1757014302110,0.1193,4281.5,4280.5,0.3657]
[1757014302111,0.2113,4281.9,4281.8,0.7032]
[1757014302311,0.5225,4281.9,4281.8,0.7032]
[1757014302605,0.3112,4282.3,4281.8,0.7032]
[1757014302809,0.2113,4282.0,4281.9,0.3997]
[1757014303011,0.5225,4282.0,4281.9,0.7032]
[1757014303308,0.7341,4282.0,4281.9,0.7032]
[1757014303609,0.8534,4282.0,4281.9,0.5063]
[1757014304008,0.7341,4282.0,4281.9,0.7032]
[1757014304707,0.8534,4282.0,4281.9,0.7032]
[1757014304914,0.8534,4282.0,4281.9,0.3997]
[1757014305917,0.5225,4282.0,4281.9,0.7032]
[1757014306211,0.4229,4282.0,4281.9,0.7032]
[1757014306409,0.7341,4282.0,4281.9,0.7032]
[1757014306601,3.3271,4282.5,4281.9,0.7032]
[1757014306811,0.5228,4282.1,4282.0,0.5063]
[1757014307013,0.1193,4282.0,4281.6,0.3035]
[1757014307312,0.1193,4281.5,4280.9,3.2078]
[1757014307518,0.8534,4281.0,4280.9,0.2028]
[1757014307707,0.8534,4281.0,4280.9,3.4106]
[1757014307904,0.1193,4281.5,4280.9,0.7169]
[1757014308108,0.5001,4281.4,4281.3,0.7142]
[1757014308414,0.6986,4281.4,4281.3,0.7142]
[1757014309011,0.1972,4281.4,4281.3,0.7142]
[1757014309208,3.2078,4281.8,4281.0,0.53948]
[1757014309209,0.1972,4281.5,4281.0,0.53948]
[1757014309410,0.5001,4281.5,4281.4,0.7142]
[1757014310013,0.6986,4281.5,4281.4,0.7142]
[1757014311116,0.1972,4281.5,4281.4,0.7142]
[1757014311418,0.3029,4282.2,4281.7,0.81731]
[1757014311716,0.3029,4282.2,4281.5,0.1191]
[1757014311717,3.2078,4282.3,4282.2,0.3172]
[1757014311911,3.405,4282.3,4282.2,0.7142]
[1757014312217,3.9064,4282.3,4282.2,0.7142]
[1757014313119,0.6986,4282.3,4282.2,0.7142]
[1757014315014,0.1972,4282.3,4282.2,0.7142]
[1757014315319,0.238,4282.5,4282.3,0.3172]
[1757014315515,3.9064,4282.9,4282.8,0.193]
[1757014315712,3.9064,4282.9,4282.8,0.7142]
[1757014315917,0.6986,4282.9,4282.8,0.7142]
[1757014316318,0.1972,4282.9,4282.8,0.7142]
[1757014316918,0.3029,4283.2,4282.8,0.7142]
[1757014317117,0.9366,4283.2,4283.1,0.7142]
[1757014317321,0.1972,4283.2,4283.1,0.7142]
[1757014317516,0.6986,4283.2,4283.1,0.7142]
[1757014317828,0.6986,4283.2,4283.1,0.397]
[1757014318125,0.6986,4283.2,4283.1,0.7142]
[1757014319317,0.6986,4283.2,4282.6,3.2078]
[1757014319620,0.6986,4282.8,4282.7,0.7142]
[1757014320509,0.6986,4282.8,4282.6,3.2078]
[1757014320715,0.6986,4282.1,4281.5,3.2078]
[1757014320911,0.8209,4282.0,4281.7,0.3172]
[1757014321115,0.518,4282.0,4281.9,0.193]
[1757014321315,3.405,4282.5,4282.4,0.397]
[1757014321518,0.1972,4282.5,4282.4,0.7142]
[1757014321722,0.8209,4282.5,4281.8,0.3172]
[1757014322223,0.1972,4281.9,4281.8,0.7142]
[1757014322616,0.1223,4282.5,4282.3,0.7142]
[1757014322617,0.6986,4282.4,4282.3,0.7142]
[1757014322818,0.1972,4282.4,4282.3,0.7142]
[1757014323517,0.5001,4282.4,4282.3,0.7142]
[1757014324723,0.3957,4282.4,4282.0,3.2078]
[1757014324920,0.3957,4281.9,4281.8,0.7142]
[1757014325226,0.6986,4281.9,4281.8,0.7142]
[1757014325523,0.8209,4281.5,4281.4,3.4008]
[1757014326629,0.6986,4281.5,4281.4,3.922]
[1757014326929,0.6986,4281.5,4281.4,0.7142]
[1757014327732,0.6986,4280.9,4280.8,3.4008]
[1757014328226,0.6986,4280.9,4280.8,0.5102]
[1757014328925,0.6986,4280.9,4280.8,0.7142]
[1757014329625,0.6986,4280.9,4280.8,0.193]
[1757014329826,0.3029,4280.8,4280.3,5.61757035]
[1757014330021,0.6986,4280.4,4280.3,3.4008]
[1757014330228,0.6986,4280.4,4280.3,3.922]
[1757014331223,0.6986,4280.4,4280.3,0.7142]
[1757014331522,0.1223,4280.5,4279.8,3.4008]
[1757014331523,0.6986,4279.9,4279.8,3.4008]
[1757014331727,0.6986,4279.9,4279.8,3.718]
[1757014331926,0.6986,4279.9,4279.8,3.922]
[1757014332129,0.6986,4279.9,4279.8,0.7142]
[1757014332828,0.3029,4280.4,4280.0,0.42048]
[1757014333032,0.3029,4280.9,4280.4,0.3172]
[1757014333227,0.6986,4280.9,4280.8,0.193]
[1757014334336,0.6986,4280.9,4280.5,0.3172]
[1757014334535,0.3029,4280.8,4280.7,0.193]
[1757014334737,0.6986,4280.8,4280.7,0.193]
[1757014337942,0.6986,4280.8,4280.7,0.6912]
[1757014339038,0.6986,4280.8,4280.7,0.397]
[1757014339636,0.6986,4280.8,4279.9,0.2942]
[1757014339830,0.238,4280.9,4279.5,0.7042]
[1757014339831,0.4013,4279.6,4279.5,0.7042]
[1757014340140,3.3301,4281.0,4279.1,0.7042]
[1757014340141,0.4901,4279.2,4279.1,0.7042]
[1757014340336,0.6918,4279.2,4279.1,0.41]
[1757014340534,0.2905,4279.1,4278.8,3.2078]
[1757014340734,0.6918,4278.8,4278.7,0.7042]
[1757014341232,0.2017,4278.8,4278.7,0.7042]
[1757014341630,0.4922,4278.8,4278.7,0.7042]
[1757014341941,0.2017,4278.8,4278.7,0.7042]
[1757014343637,0.4013,4278.8,4278.7,0.7042]
[1757014343841,0.6918,4278.8,4278.7,0.7042]
[1757014345641,0.238,4279.1,4278.8,0.2942]
[1757014345842,3.3262,4279.5,4278.8,0.2942]
[1757014345843,3.4983,4279.5,4279.4,0.7042]
[1757014346042,3.7,4279.5,4279.4,0.7042]
[1757014346336,0.2017,4279.5,4279.4,0.7042]
[1757014346536,0.2905,4279.9,4279.4,0.7042]
[1757014346741,0.6918,4279.5,4279.4,0.7042]
[1757014347045,0.2017,4279.5,4279.4,0.7042]
[1757014347438,0.4922,4279.5,4279.4,0.7042]
[1757014348738,0.6918,4279.5,4279.4,0.7042]
[1757014349440,0.1184,4280.0,4279.5,0.1181]
[1757014349643,0.6918,4280.0,4279.9,0.7042]
[1757014349839,0.2017,4280.0,4279.9,0.7042]
[1757014350038,0.2017,4280.0,4279.6,0.42052]
[1757014350039,3.2078,4280.1,4280.0,0.8223]
[1757014350239,3.7,4280.1,4280.0,0.7042]
[1757014350439,3.8996,4280.1,4280.0,0.7042]
[1757014350634,0.6918,4280.1,4280.0,0.7042]
[1757014357146,0.6918,4280.1,4279.5,3.6201]
[1757014357350,0.4922,4279.6,4279.5,3.912]
[1757014358042,0.4922,4279.6,4279.5,4.0301]
[1757014358239,0.6918,4279.6,4279.5,3.912]
[1757014358851,0.2905,4280.2,4279.6,0.2942]
[1757014359048,0.6918,4280.2,4280.1,0.7042]
[1757014359452,0.238,4280.3,4280.1,0.7042]
[1757014359646,0.238,4280.3,4280.2,0.2942]
[1757014359846,0.9298,4280.3,4280.2,0.7042]
[1757014360851,0.7302,4280.3,4280.2,0.7042]
[1757014361451,0.9298,4280.3,4280.2,0.7042]
[1757014361652,0.6918,4280.3,4280.2,0.7042]
[1757014363753,0.2017,4280.3,4280.2,0.7042]
[1757014363949,3.2078,4280.6,4280.3,0.2942]
[1757014364147,3.2078,4280.6,4280.5,0.8223]
[1757014364349,3.2078,4281.6,4281.1,0.42037]
[1757014364551,3.4095,4281.6,4281.5,0.8223]
[1757014365852,0.2017,4281.6,4281.5,0.8223]
[1757014367252,0.4397,4281.8,4281.7,0.41]
[1757014367547,0.9298,4281.8,4281.2,0.2942]
[1757014367949,0.9298,4281.8,4280.7,2.09561492]
[1757014367950,0.1205,4281.0,4280.7,2.09561492]
[1757014368152,0.3897,4280.8,4280.0,2.09561492]
[1757014368357,0.6988,4280.0,4279.9,0.7247]
[1757014371257,0.5102,4280.0,4279.4,5.30341492]
[1757014371459,0.6988,4279.9,4279.8,0.2068]
[1757014371657,0.6988,4279.9,4279.8,0.7247]
[1757014373971,0.5471,4280.3,4279.8,1.1452]
[1757014374267,0.5037,4280.2,4280.1,0.7247]
[1757014374467,0.5037,4280.5,4280.4,0.4045]
[1757014374663,0.5037,4280.5,4280.4,0.7247]
[1757014374867,3.5975,4281.3,4281.2,0.7247]
[1757014375169,0.6988,4281.3,4281.2,0.7247]
[1757014375366,0.6988,4281.3,4281.2,0.2068]
[1757014376972,0.6988,4281.3,4280.2,0.7247]
[1757014376973,0.6988,4280.3,4280.2,0.7247]
[1757014377272,0.6988,4280.8,4280.7,0.7247]
[1757014378467,0.3091,4281.2,4280.8,0.3202]
[1757014378662,0.6988,4281.2,4281.1,0.7247]
[1757014379065,0.6988,4281.2,4281.1,0.4045]
[1757014379572,0.6988,4281.2,4281.1,0.7247]
[1757014380166,0.6988,4281.2,4280.7,0.3202]
[1757014380362,0.8193,4280.5,4280.4,3.4146]
[1757014380567,0.8193,4280.5,4280.4,3.2078]
[1757014380769,0.3091,4280.4,4279.9,2.09561492]
[1757014380964,0.5037,4279.9,4279.8,0.7247]
[1757014381170,0.1946,4279.9,4279.8,0.7247]
[1757014381375,0.6988,4279.9,4279.8,0.7247]
[1757014382470,0.6988,4279.9,4279.8,0.4045]
[1757014382666,0.3897,4279.9,4279.7,3.2078]
[1757014382871,0.6988,4279.8,4279.7,3.2078]
[1757014383067,0.6988,4279.8,4279.0,2.21371492]
[1757014383068,0.3897,4279.8,4279.0,2.09561492]
[1757014383377,0.6988,4278.8,4278.7,0.527]
[1757014383864,0.6988,4278.8,4278.7,0.2068]
[1757014386370,0.6988,4278.8,4278.3,0.3202]
[1757014386577,0.3091,4278.9,4278.3,0.42064]
[1757014387178,0.3091,4278.9,4278.4,0.3202]
[1757014387572,0.3091,4278.9,4278.3,0.42064]
[1757014387573,0.3091,4278.9,4278.5,0.3202]
[1757014387767,0.1205,4279.0,4278.1,0.238]
[1757014387768,0.5042,4278.6,4278.1,0.238]
[1757014387976,0.6988,4278.2,4278.1,0.2068]
[1757014389477,0.3897,4278.2,4277.5,3.6474]
[1757014389781,0.1946,4277.7,4277.6,1.14541]
[1757014390983,0.3091,4277.9,4277.8,0.4207]
[1757014391184,0.5037,4277.9,4277.8,1.1454]
[1757014391681,0.6988,4277.9,4277.8,0.7247]
[1757014391984,0.1946,4277.9,4277.8,0.7247]
[1757014392479,0.3091,4278.3,4277.8,0.7247]
[1757014392679,0.6988,4278.4,4278.3,0.7247]
[1757014392885,0.1946,4278.4,4278.3,0.7247]
[1757014393184,0.3091,4278.7,4278.3,0.3202]
[1757014393386,0.5037,4278.7,4278.6,0.7247]
[1757014393677,0.3091,4279.1,4278.7,0.42061]
[1757014393877,0.5037,4279.1,4279.0,0.7247]
[1757014394180,0.6988,4279.5,4279.4,0.4045]
[1757014394379,0.1946,4279.5,4279.4,0.7247]
[1757014394585,0.1946,4279.5,4279.1,0.3202]
[1757014394586,0.1205,4279.5,4279.1,0.3202]
[1757014394779,0.6988,4279.2,4279.1,0.7247]
[1757014397785,0.3193,4279.6,4279.1,1.14527]
[1757014397988,0.52,4279.6,4279.5,0.4132]
[1757014398188,0.7296,4279.6,4279.5,0.7263]
[1757014400288,3.4085,4280.3,4280.2,0.2109]
[1757014400587,0.4103,4280.3,4280.2,0.2109]
[1757014400889,0.3193,4280.2,4279.7,0.42051]
[1757014401089,0.7296,4280.2,4280.1,0.2109]
[1757014401481,0.3193,4280.7,4280.0,3.3249]
[1757014401677,0.3193,4281.2,4280.6,0.4132]
[1757014401878,0.52,4281.2,4281.1,0.7263]
[1757014402184,0.3193,4281.1,4280.5,3.2078]
[1757014402488,0.7296,4280.6,4280.5,3.4187]
[1757014402993,0.2007,4280.6,4280.5,3.9341]
[1757014403289,0.52,4280.6,4280.5,3.9341]
[1757014404095,0.7296,4280.6,4280.5,3.9341]
[1757014404389,3.5651,4281.5,4280.7,0.3131]
[1757014404588,0.3193,4281.3,4280.7,0.73351]
[1757014405088,0.3193,4281.3,4280.7,0.7263]
[1757014405291,0.238,4281.8,4281.2,0.7263]
[1757014405588,0.2007,4281.4,4281.3,0.7263]
[1757014405790,0.2007,4281.7,4281.6,0.7263]
[1757014406695,0.3193,4282.0,4281.7,0.3131]
[1757014406888,0.52,4282.0,4281.9,0.4132]
[1757014407192,0.52,4282.0,4281.9,0.7263]
[1757014407993,0.7296,4281.1,4281.0,3.4187]
[1757014408296,0.7296,4281.1,4281.0,0.2109]
[1757014408985,0.7296,4281.1,4281.0,0.524]
[1757014409395,0.1193,4281.0,4280.6,0.3131]
[1757014409592,0.7296,4280.6,4280.5,3.7318]
[1757014409893,0.7296,4280.6,4280.5,3.9341]
[1757014411697,0.2007,4280.6,4280.5,3.9341]
[1757014411898,0.1193,4281.0,4280.5,3.621]
[1757014412096,0.2007,4280.9,4280.8,0.2109]
[1757014412298,0.7296,4280.9,4280.8,0.2109]
[1757014412595,0.7296,4280.9,4280.8,0.4132]
[1757014412899,0.2007,4281.0,4280.9,0.4132]
[1757014413197,0.52,4281.0,4280.9,0.7263]
[1757014414098,0.7296,4281.0,4280.9,0.7263]
[1757014414796,3.3271,4281.5,4281.1,0.42036]
[1757014415097,0.8489,4282.0,4281.9,0.2109]
[1757014415401,0.8489,4282.0,4281.9,0.524]
[1757014415597,0.4103,4281.4,4281.3,0.524]
[1757014415803,0.4103,4281.4,4281.3,0.2109]
[1757014415804,0.7296,4281.4,4281.3,0.2109]
[1757014416097,0.1193,4281.0,4280.5,3.5209]
[1757014416303,0.52,4280.6,4280.5,4.35453]
[1757014416995,0.52,4280.6,4280.5,3.9341]
[1757014417190,0.52,4280.6,4280.5,4.35453]
[1757014417391,0.32,4281.0,4280.9,0.2109]
[1757014417596,0.5296,4281.0,4280.9,0.2109]
[1757014418003,0.8489,4281.0,4280.9,0.2109]
[1757014418301,0.3193,4280.9,4280.5,3.5209]
[1757014418503,0.2007,4280.6,4280.5,3.9341]
[1757014418895,0.7296,4280.6,4280.5,3.9341]
[1757014419297,0.4386,4281.0,4280.5,4.47163]
[1757014419599,0.7296,4281.4,4281.3,0.524]
[1757014420303,0.7296,4281.4,4281.3,0.7263]
[1757014421006,0.2007,4281.4,4281.3,0.7263]
[1757014421209,0.3193,4281.6,4281.4,0.3131]
[1757014421406,0.52,4281.5,4281.4,0.4132]
[1757014421604,0.52,4281.5,4281.4,0.7263]
[1757014422000,0.7296,4281.5,4281.4,0.7263]
[1757014426208,3.2078,4282.0,4281.9,0.4132]
[1757014426408,3.4085,4282.0,4281.9,0.7263]
[1757014426606,0.52,4282.0,4281.9,0.7263]
[1757014426803,0.7296,4282.0,4281.9,0.7263]
[1757014427810,0.7128,4282.8,4282.7,0.7002]
[1757014428311,0.1937,4282.8,4282.7,0.7002]
[1757014428701,0.5076,4282.8,4282.7,0.7002]
[1757014429107,0.7128,4282.8,4282.7,0.1935]
[1757014431519,0.5519,4283.1,4282.8,0.2961]
[1757014431818,0.7128,4282.6,4282.5,3.908]
[1757014434514,0.7128,4282.6,4282.5,3.2078]
[1757014435019,0.7128,4282.6,4282.5,3.908]
[1757014435407,0.1193,4283.5,4282.6,0.2961]
[1757014435612,0.7128,4282.7,4282.6,0.1935]
[1757014436011,0.7128,4282.7,4282.6,0.7002]
[1757014437022,3.2078,4283.6,4283.4,0.2961]
[1757014437316,0.7128,4283.9,4283.8,0.1935]
[1757014437523,0.7128,4283.9,4283.6,0.2961]
[1757014437721,0.3139,4283.8,4283.3,0.42016]
[1757014437921,0.7128,4283.8,4283.7,0.1935]
[1757014438417,0.7128,4283.8,4283.7,0.7002]
[1757014438923,0.7128,4283.8,4283.3,0.2961]
[1757014439925,0.2052,4283.7,4283.6,0.1935]
[1757014440116,0.3139,4283.6,4283.1,0.5341]
[1757014440419,0.30159036,4284.5,4282.4,3.5039]
[1757014440420,0.3989,4283.2,4282.4,3.5039]
[1757014440622,0.7128,4282.5,4282.4,4.146]
[1757014442919,0.8312,4282.5,4282.4,3.4013]
[1757014443120,0.7128,4282.5,4282.4,3.908]
[1757014443733,0.3121,4283.0,4282.9,0.1935]
[1757014443925,0.8312,4283.0,4282.9,0.4896]
[1757014444229,0.8312,4283.0,4282.9,0.1935]
[1757014444620,0.7128,4283.0,4282.9,0.7002]
[1757014444821,0.8312,4283.0,4282.5,0.2961]
[1757014445015,0.8312,4283.0,4282.8,0.1935]
[1757014445016,0.7128,4282.9,4282.8,0.1935]
[1757014445826,0.7128,4282.9,4269.3,11.6802625]
[1757014445827,0.7128,4282.1,4282.0,0.4896]
[1757014446426,0.7128,4282.1,4282.0,0.7002]
[1757014446625,0.3989,4281.6,4281.5,0.4896]
[1757014446824,3.44134,4282.4,4281.6,0.71642]
[1757014447025,0.7128,4281.7,4281.6,0.7002]
[1757014447228,0.7128,4281.7,4281.6,0.1935]
[1757014447530,0.7128,4281.7,4281.2,0.5341]
[1757014447531,0.7128,4281.7,4281.2,0.2961]
[1757014447828,0.7128,4281.4,4281.3,1.12055]
[1757014448027,0.1937,4281.4,4281.3,1.12055]
[1757014448325,0.238,4282.3,4281.3,1.12055]
[1757014448326,0.5076,4282.3,4282.2,0.1935]